bitfinex-derivatives/quotes_SOLF0:USTF0_20250904
["timestamp","ask_amount","ask_price","bid_price","bid_amount"]
[1756945689307,125.9,211.79,211.78,4.35710391]
[1756945689910,7.92,211.79,211.78,4.35710391]
[1756945690107,125.88,211.79,211.78,4.35710391]
[1756945690309,125.84,211.79,211.78,4.35710391]
[1756945692213,117.84,211.79,211.78,4.35710391]
[1756945693113,117.84,211.79,211.78,6.7691898]
[1756945693414,117.82,211.79,211.78,4.35710391]
[1756945693613,11.7871,211.84,211.78,5.89737153]
[1756945693817,125.34,211.83,211.82,1.54026762]
[1756945694117,125.34,211.83,211.82,5.86526754]
[1756945694508,7.54,211.83,211.82,5.86526754]
[1756945694708,7.54,211.86,211.82,5.86526754]
[1756945694910,7.54,211.86,211.85,1.54026762]
[1756945695315,7.54,211.84,211.83,0.0312549]
[1756945695520,7.54,211.84,211.83,4.34711087]
[1756945695720,125.34,211.84,211.83,4.34711087]
[1756945695914,125.34,211.84,211.83,0.0312549]
[1756945696516,125.34,211.84,211.83,4.34827018]
[1756945697021,125.36,211.84,211.83,0.0312549]
[1756945697220,4.2477,211.81,211.72,3.91638978]
[1756945697421,4.2477,211.81,211.76,1.54026762]
[1756945697422,7.54,211.79,211.76,1.54026762]
[1756945697622,7.54,211.79,211.77,4.31742125]
[1756945697825,7.54,211.79,211.78,4.31742125]
[1756945698226,125.36,211.79,211.78,4.31742125]
[1756945698423,7.54,211.79,211.78,4.31742125]
[1756945698624,44.94,211.79,211.78,4.31742125]
[1756945698816,4.2477,211.81,211.78,4.31742125]
[1756945699016,72.92,211.79,211.77,1.54026762]
[1756945699220,7.54,211.8,211.78,4.31746804]
[1756945699524,7.54,211.8,211.79,4.31746804]
[1756945699921,44.76,211.8,211.79,4.31746804]
[1756945700316,80.12,211.8,211.79,4.31746804]
[1756945700518,7.54,211.8,211.79,4.31746804]
[1756945700721,113.58,211.8,211.79,4.31746804]
[1756945700918,117.8278,211.8,211.79,4.31746804]
[1756945701125,11.7878,211.8,211.79,4.31746804]
[1756945701324,44.64,211.8,211.79,4.31746804]
[1756945701522,7.54,211.8,211.79,4.31746804]
[1756945701718,75.84,211.8,211.79,4.31746804]
[1756945702421,109.3,211.8,211.79,4.31746804]
[1756945702619,125.22,211.8,211.79,4.31746804]
[1756945702828,7.54,211.8,211.79,4.31746804]
[1756945703024,44.38,211.8,211.79,4.31746804]
[1756945703924,7.54,211.8,211.79,4.31746804]
[1756945704223,44.22,211.8,211.79,4.31746804]
[1756945704728,79.06,211.8,211.79,4.31746804]
[1756945706030,112.04,211.8,211.79,4.31746804]
[1756945706828,125.12,211.8,211.79,4.31746804]
[1756945707433,7.54,211.8,211.79,4.31746804]
[1756945707729,125.1,211.8,211.79,4.31746804]
[1756945708025,7.54,211.8,211.79,4.31746804]
[1756945708328,125.08,211.8,211.79,4.31746804]
[1756945708829,7.54,211.8,211.79,4.31746804]
[1756945709025,125.08,211.8,211.79,4.31746804]
[1756945710635,7.54,211.8,211.79,4.31746804]
[1756945710826,43.58,211.8,211.79,4.31746804]
[1756945711025,7.54,211.8,211.79,4.31746804]
[1756945711233,77.82,211.8,211.79,4.31746804]
[1756945711929,7.54,211.8,211.79,4.31746804]
[1756945712124,41.10026762,211.8,211.7,4.36]
[1756945712325,61.84,211.79,211.71,1.54026762]
[1756945712532,7.54,211.78,211.72,1.54026762]
[1756945712733,4.2488,211.76,211.72,1.54026762]
[1756945712931,4.2488,211.76,211.7,4.36]
[1756945712932,7.54,211.76,211.7,1.54026762]
[1756945713234,7.54,211.74,211.7,1.54026762]
[1756945713438,106.08,211.75,211.7,1.54026762]
[1756945713628,7.54,211.74,211.7,1.54026762]
[1756945714230,106.08,211.75,211.7,1.54026762]
[1756945714425,7.54,211.74,211.66,8.27638978]
[1756945714625,4.2486,211.76,211.71,1.54026762]
[1756945714826,7.54,211.74,211.71,1.54026762]
[1756945715230,121.789,211.75,211.71,1.54026762]
[1756945715435,7.54,211.74,211.71,1.54026762]
[1756945715638,121.789,211.75,211.71,1.54026762]
[1756945716030,4.249,211.75,211.71,1.54026762]
[1756945716229,125.08,211.74,211.71,1.54026762]
[1756945717338,7.54,211.74,211.71,1.54026762]
[1756945717538,117.54,211.73,211.71,1.54026762]
[1756945718434,7.54,211.74,211.71,1.54026762]
[1756945718634,7.54,211.77,211.71,5.90026762]
[1756945718840,117.54,211.76,211.71,1.54026762]
[1756945719041,4.2484,211.78,211.75,1.54026762]
[1756945719240,7.54,211.77,211.75,1.54026762]
[1756945719436,4.2484,211.78,211.74,1.54026762]
[1756945719437,125.08,211.76,211.74,1.54026762]
[1756945719641,125.08,211.75,211.74,1.54026762]
[1756945719941,7.54,211.75,211.74,1.54026762]
[1756945720238,125.08,211.75,211.74,1.54026762]
[1756945721038,7.54,211.75,211.74,1.54026762]
[1756945721243,125.08,211.75,211.74,1.54026762]
[1756945721441,7.54,211.75,211.74,1.54026762]
[1756945721638,125.08,211.75,211.74,1.54026762]
[1756945723940,7.54,211.75,211.74,1.54026762]
[1756945724137,125.08,211.75,211.74,5.82677362]
[1756945726042,7.54,211.75,211.74,5.82677362]
[1756945726245,125.08,211.75,211.74,4.286506]
[1756945726548,7.54,211.75,211.72,0.02981446]
[1756945726739,7.5,211.73,211.72,0.02981446]
[1756945726939,7.5,211.73,211.66,1.54026762]
[1756945727238,117.54,211.72,211.66,1.54026762]
[1756945727445,7.5,211.73,211.67,1.54026762]
[1756945727640,7.5,211.71,211.67,1.54026762]
[1756945727833,11.75,211.7,211.67,1.54026762]
[1756945728033,78.52,211.69,211.67,1.54026762]
[1756945728235,103.36,211.68,211.67,1.54026762]
[1756945728438,117.54,211.68,211.67,1.54026762]
[1756945729040,7.53442104,211.71,211.67,1.54026762]
[1756945729247,16.08,211.7,211.67,1.54026762]
[1756945730046,47.94,211.69,211.67,1.54026762]
[1756945730348,55.44,211.69,211.67,1.54026762]
[1756945731047,81.46,211.68,211.67,1.54026762]
[1756945732246,88.96,211.68,211.64,3.91638978]
[1756945732548,81.46,211.68,211.67,1.54026762]
[1756945732949,88.96,211.68,211.67,1.54026762]
[1756945733344,7.5,211.68,211.67,1.54026762]
[1756945733550,42.86,211.68,211.67,1.54026762]
[1756945735954,42.86,211.68,211.65,1.54026762]
[1756945736253,7.5,211.67,211.65,1.54026762]
[1756945736755,7.5,211.66,211.65,1.54026762]
[1756945738556,76.2,211.68,211.65,1.54026762]
[1756945738958,76.2,211.68,211.67,1.54026762]
[1756945739356,7.5,211.68,211.67,1.54026762]
[1756945739558,104.8301,211.69,211.65,1.54026762]
[1756945739752,7.5,211.68,211.65,1.54026762]
[1756945740158,4.2501,211.69,211.65,1.54026762]
[1756945740358,7.5,211.66,211.62,3.91638978]
[1756945740557,7.5,211.64,211.61,1.54026762]
[1756945740755,7.5,211.63,211.61,1.54026762]
[1756945740953,7.5,211.64,211.61,1.54026762]
[1756945741154,30.9104989,211.65,211.61,1.54026762]
[1756945741554,4.2512,211.64,211.61,1.54026762]
[1756945742156,7.5,211.63,211.61,1.54026762]
[1756945742550,7.5,211.63,211.57,3.91638978]
[1756945742758,7.5,211.63,211.61,1.54026762]
[1756945743250,53.5512,211.64,211.61,1.54026762]
[1756945743452,7.5,211.63,211.61,1.54026762]
[1756945743761,53.5512,211.64,211.61,1.54026762]
[1756945744159,7.5,211.63,211.61,1.54026762]
[1756945744557,53.5512,211.64,211.61,1.54026762]
[1756945744754,7.5,211.63,211.61,1.54026762]
[1756945745061,7.5304989,211.65,211.61,1.54026762]
[1756945745261,41.2104989,211.65,211.61,5.94026762]
[1756945745866,7.5,211.64,211.61,5.94026762]
[1756945746763,7.5,211.63,211.61,1.54026762]
[1756945748964,0.0304989,211.65,211.61,1.54026762]
[1756945749158,0.0304989,211.65,211.64,1.54026762]
[1756945749159,7.5304989,211.65,211.64,1.54026762]
[1756945751862,0.0304989,211.65,211.64,5.93026762]
[1756945752364,0.0304989,211.65,211.64,1.54026762]
[1756945752561,0.0304989,211.65,211.6,8.31850135]
[1756945752767,7.87,211.64,211.63,1.54026762]
[1756945753763,7.87,211.64,211.6,8.31850135]
[1756945753764,7.87,211.64,211.6,10.72887825]
[1756945754075,7.87,211.64,211.61,4.41]
[1756945756776,0.0304989,211.65,211.6,3.90850135]
[1756945756962,7.87,211.64,211.59,2.4103769]
[1756945757272,0.0304989,211.65,211.59,2.4103769]
[1756945758063,7.87,211.64,211.59,2.4103769]
[1756945758768,0.0304989,211.65,211.58,3.90850135]
[1756945759073,0.0304989,211.65,211.56,6.31887825]
[1756945759074,9.15,211.64,211.56,6.31887825]
[1756945759772,7.87,211.64,211.56,6.31887825]
[1756945759975,4.2517,211.61,211.56,6.31887825]
[1756945760671,4.28515482,211.61,211.56,10.72887825]
[1756945760865,7.87,211.6,211.56,10.72887825]
[1756945761067,4.28515482,211.61,211.56,10.72887825]
[1756945761468,4.28515482,211.61,211.56,6.8203769]
[1756945761973,4.252,211.6,211.56,2.4103769]
[1756945762175,7.87,211.59,211.56,6.8203769]
[1756945765976,4.252,211.6,211.55,183.19290403]
[1756945766674,7.87,211.59,211.55,183.19290403]
[1756945766878,4.2521,211.59,211.55,3.90850135]
[1756945767072,4.2521,211.59,211.54,3.90850135]
[1756945767279,7.87,211.58,211.54,8.31850135]
[1756945767776,4.2521,211.59,211.54,8.31850135]
[1756945767978,7.87,211.58,211.54,8.31850135]
[1756945769273,4.2521,211.59,211.54,8.31850135]
[1756945769474,12.1224,211.58,211.54,8.31850135]
[1756945769777,22.87345482,211.61,211.48,7.91098448]
[1756945769778,10.2803769,211.6,211.5,3.90850135]
[1756945770078,4.2532,211.54,211.51,3.90850135]
[1756945770275,4.2532,211.54,211.5,3.90850135]
[1756945770879,7.87,211.53,211.5,3.90850135]
[1756945771276,4.2532,211.54,211.5,3.90850135]
[1756945771475,7.87,211.53,211.5,3.90850135]
[1756945771681,4.2532,211.54,211.5,3.90850135]
[1756945773176,4.2534,211.53,211.5,3.90850135]
[1756945773376,7.87,211.54,211.48,3.90850135]
[1756945773681,7.87,211.54,211.47,3.90850135]
[1756945773874,0.03489359,211.53,211.47,3.90850135]
[1756945774376,7.87,211.49,211.47,3.90850135]
[1756945774880,7.87,211.52,211.45,3.90850135]
[1756945775078,7.87,211.52,211.44,3.90850135]
[1756945775278,7.87,211.52,211.43,8.31850135]
[1756945775580,7.87,211.49,211.43,8.31850135]
[1756945775979,12.1242,211.49,211.43,8.31850135]
[1756945776372,12.1242,211.49,211.43,4.41]
[1756945778281,7.87,211.49,211.43,4.41]
[1756945778577,7.87,211.49,211.44,2.4103769]
[1756945778875,7.87,211.49,211.45,4.41]
[1756945779280,0.03404863,211.5,211.45,4.41]
[1756945779483,7.87,211.49,211.45,4.41]
[1756945780483,4.28804863,211.5,211.45,4.41]
[1756945780782,7.87,211.49,211.45,4.41]
[1756945781887,4.28804863,211.5,211.45,4.41]
[1756945782080,7.74,211.49,211.45,4.41]
[1756945782382,4.2542,211.49,211.43,2.4103769]
[1756945782583,11.9942,211.49,211.43,2.4103769]
[1756945784089,4.2544,211.48,211.43,2.4103769]
[1756945784786,7.74,211.47,211.43,2.4103769]
[1756945784989,7.74,211.47,211.44,4.42]
[1756945785485,4.2546,211.46,211.43,2.4103769]
[1756945785875,7.74,211.45,211.43,2.4103769]
[1756945786279,4.2546,211.46,211.43,2.4103769]
[1756945786479,4.2546,211.46,211.43,6.8303769]
[1756945786686,4.2542,211.48,211.43,6.8303769]
[1756945786888,0.03404863,211.5,211.43,6.8303769]
[1756945787896,4.2542,211.49,211.43,6.8303769]
[1756945788498,11.9942,211.49,211.43,6.8303769]
[1756945788794,7.74,211.47,211.43,6.8303769]
[1756945790091,7.74,211.47,211.44,4.42]
[1756945791096,11.9946,211.46,211.4,3.23284833]
[1756945791593,0.03441144,211.45,211.41,4.42]
[1756945791793,0.03441144,211.45,211.4,3.23284833]
[1756945792000,0.03441144,211.45,211.41,4.42]
[1756945792201,0.03441144,211.45,211.4,3.23284833]
[1756945792400,0.03441144,211.45,211.41,4.42]
[1756945792704,0.03441144,211.45,211.44,4.42]
[1756945793803,0.03441144,211.45,211.43,2.4103769]
[1756945794897,7.77441144,211.45,211.4,3.23284833]
[1756945795093,7.74,211.44,211.41,4.42]
[1756945795701,0.03441144,211.45,211.4,3.23284833]
[1756945795902,7.74,211.44,211.4,3.23284833]
[1756945796102,7.74,211.44,211.4,7.65284833]
[1756945796706,0.03441144,211.45,211.41,4.42]
[1756945796998,7.77441144,211.45,211.41,4.42]
[1756945800204,11.995,211.44,211.41,4.42]
[1756945800403,4.255,211.44,211.4,3.23284833]
[1756945800603,7.74,211.43,211.4,3.23284833]
[1756945800909,7.74,211.43,211.4,7.65284833]
[1756945801204,7.74,211.44,211.4,3.23284833]
[1756945801403,7.74,211.44,211.36,4.42]
[1756945801605,7.74,211.44,211.37,2.4103769]
[1756945802308,4.2554,211.43,211.37,2.4103769]
[1756945802604,7.74,211.44,211.38,4.42]
[1756945803005,7.74,211.44,211.4,2.4103769]
[1756945804007,0.03441144,211.45,211.4,2.4103769]
[1756945804205,7.74,211.44,211.4,2.4103769]
[1756945804706,4.28941144,211.45,211.4,6.8303769]
[1756945805013,7.74,211.44,211.4,2.4103769]
[1756945805206,7.74,211.44,211.4,6.8303769]
[1756945805407,0.03441144,211.45,211.4,2.4103769]
[1756945805610,7.77441144,211.45,211.41,4.42]
[1756945805914,7.74,211.44,211.4,2.4103769]
[1756945806206,7.74,211.44,211.35,0.82332762]
[1756945807212,7.74,211.44,211.32,3.90850135]
[1756945807714,0.03158206,211.4,211.32,3.90850135]
[1756945808012,7.74,211.39,211.32,3.90850135]
[1756945808212,7.74,211.39,211.31,3.90850135]
[1756945809012,4.2564,211.38,211.31,3.90850135]
[1756945811414,4.2564,211.38,211.32,3.90850135]
[1756945812512,4.2566,211.37,211.32,3.90850135]
[1756945812713,7.61,211.36,211.32,3.90850135]
[1756945813018,7.61,211.36,211.33,4.43]
[1756945814815,4.2561,211.39,211.33,4.43]
[1756945815022,4.2561,211.39,211.33,8.33850135]
[1756945815621,7.61,211.38,211.35,1.54670369]
[1756945815816,0.03158206,211.4,211.35,1.54670369]
[1756945816018,0.03158206,211.4,211.39,1.54670369]
[1756945816216,7.64158206,211.4,211.39,1.54670369]
[1756945817221,0.03158206,211.4,211.39,1.54670369]
[1756945817524,7.61,211.39,211.33,3.90850135]
[1756945817717,4.2572,211.34,211.32,1.54670369]
[1756945817921,11.8672,211.34,211.32,1.54670369]
[1756945818322,4.2572,211.34,211.32,1.54670369]
[1756945818524,7.61,211.33,211.32,1.54670369]
[1756945821120,7.61,211.31,211.28,292.0210621]
[1756945821320,7.61,211.34,211.28,1.54670369]
[1756945821520,7.61,211.34,211.27,3.90850135]
[1756945821521,7.61,211.34,211.26,3.90850135]
[1756945821730,7.61,211.29,211.27,1.54670369]
[1756945821923,4.258,211.3,211.27,1.54670369]
[1756945822124,7.61,211.29,211.27,1.54670369]
[1756945822726,7.61,211.29,211.26,3.90850135]
[1756945822926,7.61,211.28,211.26,1.54670369]
[1756945823726,7.61,211.3,211.26,5.97670369]
[1756945823927,7.61,211.3,211.28,1.54670369]
[1756945824124,4.29022684,211.31,211.28,1.54670369]
[1756945824330,11.90022684,211.31,211.28,1.54670369]
[1756945826230,4.29022684,211.31,211.28,1.54670369]
[1756945826433,7.61,211.3,211.28,1.54670369]
[1756945827729,7.61,211.29,211.28,1.54670369]
[1756945828928,7.61,211.29,211.24,0.82376613]
[1756945829234,11.868,211.29,211.28,1.54670369]
[1756945829433,4.258,211.29,211.26,1.54670369]
[1756945829633,11.868,211.29,211.26,1.54670369]
[1756945829834,7.61,211.28,211.26,1.54670369]
[1756945830031,4.2584,211.28,211.26,1.54670369]
[1756945830235,7.61,211.27,211.26,1.54670369]
[1756945830634,4.2584,211.28,211.24,0.82376613]
[1756945830836,7.61,211.27,211.26,1.54670369]
[1756945837341,7.61,211.27,211.24,0.82376613]
[1756945837541,4.2584,211.28,211.26,1.54670369]
[1756945837741,7.61,211.27,211.26,1.54670369]
[1756945838642,4.2584,211.28,211.22,4.43]
[1756945838941,7.61,211.27,211.26,1.54670369]
[1756945839142,7.64226768,211.27,211.26,1.54670369]
[1756945839831,7.64226768,211.27,211.22,4.43]
[1756945840031,7.61,211.26,211.2,9.16244301]
[1756945840232,7.61,211.26,211.25,1.54670369]
[1756945841943,7.61,211.26,211.2,0.82394166]
[1756945842139,7.61,211.26,211.2,1.54670369]
[1756945842540,7.31,211.26,211.2,1.54670369]
[1756945842736,7.31,211.26,211.16,0.82406848]
[1756945843046,4.2592,211.23,211.19,1.54670369]
[1756945843441,7.31,211.26,211.19,1.54670369]
[1756945843840,4.2598,211.21,211.16,0.82406848]
[1756945844046,11.5698,211.21,211.19,1.54670369]
[1756945844543,4.2598,211.21,211.19,1.54670369]
[1756945844844,7.31,211.2,211.16,0.82406848]
[1756945845041,7.31,211.2,211.19,1.54670369]
[1756945847247,7.34101749,211.22,211.19,1.54670369]
[1756945847447,7.34101749,211.22,211.21,1.54670369]
[1756945849451,0.03101749,211.22,211.19,1.54670369]
[1756945849647,7.31,211.21,211.19,1.54670369]
[1756945850549,0.03101749,211.22,211.2,4.44]
[1756945850746,0.03101749,211.22,211.21,1.54670369]
[1756945851352,0.03101749,211.22,211.2,4.44]
[1756945851551,7.34101749,211.22,211.21,1.54670369]
[1756945852054,0.03101749,211.22,211.21,1.54670369]
[1756945852247,7.34101749,211.22,211.21,1.54670369]
[1756945853653,7.34101749,211.22,211.16,9.17256983]
[1756945853843,7.34101749,211.22,211.21,1.54670369]
[1756945854253,7.34101749,211.22,211.16,5.26406848]
[1756945854452,7.31,211.21,211.18,1.54670369]
[1756945854656,0.03101749,211.22,211.18,1.54670369]
[1756945854852,4.2598,211.21,211.18,1.54670369]
[1756945855047,0.03101749,211.22,211.16,0.82406848]
[1756945855254,7.31,211.2,211.16,1.54670369]
[1756945855754,7.31,211.19,211.16,1.54670369]
[1756945855953,7.31,211.2,211.14,1.54670369]
[1756945856749,0.0333469,211.19,211.14,1.54670369]
[1756945856956,4.2605,211.18,211.14,1.54670369]
[1756945857251,7.3433469,211.19,211.16,1.54670369]
[1756945857451,7.3433469,211.19,211.18,1.54670369]
[1756945857851,0.0333469,211.19,211.18,1.54670369]
[1756945858056,7.3433469,211.19,211.18,1.54670369]
[1756945859254,7.3433469,211.19,211.14,4.44]
[1756945859559,7.31,211.18,211.17,1.54670369]
[1756945861860,7.31,211.18,211.14,4.44]
[1756945862062,7.31,211.18,211.17,1.54670369]
[1756945864273,0.0333469,211.19,211.17,1.54670369]
[1756945864469,7.3433469,211.19,211.17,1.54670369]
[1756945865471,0.0333469,211.19,211.17,1.54670369]
[1756945865667,7.31,211.18,211.17,1.54670369]
[1756945867674,7.31,211.18,211.16,1.54670369]
[1756945868564,4.2935469,211.19,211.16,1.54670369]
[1756945869367,7.31,211.18,211.16,1.54670369]
[1756945869573,4.2935469,211.19,211.16,1.54670369]
[1756945869763,7.31,211.18,211.16,1.54670369]
[1756945869970,4.2935469,211.19,211.16,1.54670369]
[1756945870471,7.31,211.18,211.16,1.54670369]
[1756945870773,4.2935469,211.19,211.16,1.54670369]
[1756945870973,7.31,211.18,211.16,1.54670369]
[1756945871174,4.2935469,211.19,211.16,1.54670369]
[1756945872074,7.32,211.18,211.16,1.54670369]
[1756945872269,4.2935469,211.19,211.16,1.54670369]
[1756945872474,4.2935469,211.19,211.15,1.54670369]
[1756945872475,11.6135469,211.19,211.15,1.54670369]
[1756945872677,4.2605,211.17,211.12,0.82415631]
[1756945872876,4.2605,211.17,211.13,1.54670369]
[1756945873173,4.2605,211.17,211.12,0.82415631]
[1756945873374,4.2605,211.17,211.13,1.54670369]
[1756945873775,0.0333469,211.19,211.13,1.54670369]
[1756945873776,4.2608,211.16,211.13,1.54670369]
[1756945873976,7.32,211.16,211.08,1.54670369]
[1756945874574,1.54670369,211.17,211.08,1.54670369]
[1756945874575,7.32,211.13,211.08,1.54670369]
[1756945874876,7.32,211.11,211.08,5.97670369]
[1756945875580,4.2616,211.12,211.07,0.82441989]
[1756945876080,7.32,211.13,211.05,3.90850135]
[1756945876274,7.32,211.13,211.03,4.73309705]
[1756945877081,11.5821,211.09,211.03,4.73309705]
[1756945877281,11.5821,211.09,211.03,0.8245957]
[1756945877783,7.32,211.07,211.03,5.2545957]
[1756945878669,0.03387488,211.08,211.03,5.2545957]
[1756945878670,0.03387488,211.08,211.04,2.42277083]
[1756945878877,0.03387488,211.08,211.05,4.43]
[1756945879074,0.03387488,211.08,211.05,3.90850135]
[1756945879982,0.03387488,211.08,211.07,6.85277083]
[1756945882386,0.03387488,211.08,211.07,4.43]
[1756945882684,0.03387488,211.08,211.07,6.85277083]
[1756945883385,0.03387488,211.08,211.07,2.42277083]
[1756945885680,0.03387488,211.08,211.06,4.43]
[1756945886285,0.03387488,211.08,211.05,6.35422016]
[1756945886486,0.03387488,211.08,211.06,8.36144933]
[1756945886686,0.03387488,211.08,211.07,4.43]
[1756945886986,7.32,211.17,211.07,4.43]
[1756945887185,7.32,211.17,211.1,2.42277083]
[1756945888283,11.5806,211.17,211.1,2.42277083]
[1756945888478,34.58742491,211.64,211.16,2.42277083]
[1756945888479,7.32,211.29,211.16,2.42277083]
[1756945888686,23.12,211.29,211.19,2.42277083]
[1756945889882,7.32,211.24,211.14,3.93144933]
[1756945890086,7.32,211.24,211.08,7.91098448]
[1756945890087,7.32,211.24,211.1,2.42277083]
[1756945890287,2.42277083,211.22,211.08,8.36144933]
[1756945890488,4.2614,211.13,211.07,2.42277083]
[1756945890684,7.32,211.13,211.07,2.42277083]
[1756945891688,7.32,211.13,211.06,3.93144933]
[1756945892891,11.5813,211.13,211.06,3.93144933]
[1756945893785,4.2609,211.16,211.09,4.43]
[1756945894083,4.2609,211.16,211.1,3.93144933]
[1756945894287,7.32,211.17,211.11,2.42277083]
[1756945895992,7.32,211.17,211.11,6.85277083]
[1756945896892,11.5805,211.17,211.11,6.85277083]
[1756945898790,4.2609,211.16,211.1,3.93144933]
[1756945898989,4.2609,211.16,211.09,3.93144933]
[1756945899687,4.2609,211.16,211.1,3.93144933]
[1756945900693,7.32,211.18,211.08,3.93144933]
[1756945900889,7.32,211.14,211.05,3.93144933]
[1756945903095,7.59,211.11,211.05,3.93144933]
[1756945903291,127.24880434,211.32,211.05,3.93144933]
[1756945903292,7.59,211.17,211.07,3.93144933]
[1756945903597,11.8506,211.17,211.1,2.42277083]
[1756945904091,4.2608,211.16,211.1,2.42277083]
[1756945905191,4.2608,211.16,211.1,6.35422016]
[1756945905395,4.261,211.15,211.1,3.93144933]
[1756945905698,11.851,211.15,211.09,8.37144933]
[1756945908300,11.851,211.15,211.1,3.93144933]
[1756945908895,7.59,211.14,211.1,3.93144933]
[1756945909102,11.8504,211.18,211.1,3.93144933]
[1756945909401,7.59,211.18,211.1,3.93144933]
[1756945909599,7.59,211.14,211.1,3.93144933]
[1756945909802,4.2609,211.15,211.09,8.37144933]
[1756945910002,11.8509,211.15,211.09,8.37144933]
[1756945910599,4.2613,211.13,211.09,3.93144933]
[1756945910997,7.59,211.12,211.09,3.93144933]
[1756945911197,7.59,211.12,211.08,3.93144933]
[1756945912594,4.2613,211.13,211.08,3.93144933]
[1756945912995,7.59,211.12,211.08,3.93144933]
[1756945913201,4.2613,211.13,211.08,3.93144933]
[1756945913602,7.59,211.12,211.08,3.93144933]
[1756945915005,7.59,211.12,211.08,8.37144933]
[1756945917308,4.2613,211.13,211.08,8.37144933]
[1756945917509,4.2613,211.13,211.09,3.93144933]
[1756945917808,11.8516,211.12,211.09,3.93144933]
[1756945918208,7.59,211.11,211.09,3.93144933]
[1756945918809,7.59,211.11,211.1,3.93144933]
[1756945919609,7.59,211.11,211.09,3.93144933]
[1756945921311,7.59,211.17,211.09,3.93144933]
[1756945921606,5.32114229,211.25,211.07,3.93144933]
[1756945921607,7.59,211.08,211.07,3.93144933]
[1756945921807,7.59,211.13,211.06,3.93144933]
[1756945922911,11.8524,211.08,211.06,3.93144933]
[1756945923212,7.59,211.07,211.06,3.93144933]
[1756945927316,7.59,211.07,211.03,6.04585329]
[1756945927317,7.59,211.07,211.05,3.93144933]
[1756945927821,2.42277083,211.19,211.05,3.93144933]
[1756945928014,7.59,211.17,211.09,3.93144933]
[1756945928408,4.2616,211.12,211.09,3.93144933]
[1756945928614,11.8516,211.12,211.09,3.93144933]
[1756945930321,11.8516,211.12,211.09,8.37144933]
[1756945930515,2.42277083,211.16,211.08,4.933e-05]
[1756945930715,7.59,211.14,211.03,6.04585329]
[1756945930915,7.59,211.14,211.03,0.8245957]
[1756945931116,4.2628,211.06,211.03,0.8245957]
[1756945931419,11.8528,211.06,211.03,0.8245957]
[1756945931621,7.59,211.05,211.03,0.8245957]
[1756945932115,11.8531,211.05,211.03,0.8245957]
[1756945932318,11.7331,211.05,211.0,5.22125759]
[1756945932519,11.7331,211.05,211.0,6.04602918]
[1756945932720,11.7331,211.05,211.01,4.44]
[1756945933220,4.2631,211.05,211.01,4.44]
[1756945933420,11.84,211.1,211.0,6.04602918]
[1756945933619,11.24831937,211.09,211.0,0.82477159]
[1756945933821,3.77831937,211.08,211.0,0.82477159]
[1756945934129,3.77831937,211.08,210.91,10.54797931]
[1756945934130,7.47,211.06,210.98,5.22125759]
[1756945934310,7.47,211.04,210.92,8.46894664]
[1756945934515,3.77831937,211.03,210.93,9.66125759]
[1756945934815,8.04181937,211.02,210.93,9.66125759]
[1756945935012,3.77831937,211.01,210.95,6.86277083]
[1756945935211,7.47,211.04,210.95,6.86277083]
[1756945935416,3.77689091,211.03,210.95,6.86277083]
[1756945935716,3.77689091,211.02,210.95,6.86277083]
[1756945936021,3.77689091,211.01,210.95,6.86277083]
[1756945936221,11.7331,211.04,210.95,6.86277083]
[1756945936422,3.77443338,211.03,210.95,6.86277083]
[1756945936622,3.77443338,211.02,210.95,6.86277083]
[1756945936823,3.77443338,211.01,210.95,6.86277083]
[1756945937022,4.2635,211.03,210.95,6.86277083]
[1756945937224,7.47,211.01,210.95,6.86277083]
[1756945937421,7.47,211.01,210.94,1.55270656]
[1756945938217,4.2641,211.0,210.94,1.55270656]
[1756945938422,9.02270656,211.01,210.94,1.55270656]
[1756945938622,3.77062797,211.0,210.94,1.55270656]
[1756945938822,9.02270656,211.01,210.94,1.55270656]